Cogmind - Beta 9.6 @@@ ROGUE MODE // 2020.08.22 @ 03:29:21 Player: Cracklepappy Result: Destroyed by D-53 Grenadier with Mini Grenade Launcher Performance ------------- Evolutions (0) 0 Regions Visited (2) 400 Robots Destroyed (8) 40 Value Destroyed (70) 70 Prototype IDs (0) 0 Alien Tech Used (0) 0 Bonus (60) 60 TOTAL SCORE: 570 Bonus ------- Follower Combat Kills 60 Cogmind --------- Core Integrity 0/250 Matter 285/300 Energy 67/100 System Corruption 3% Temperature Cool (0) Movement Flying (120) Ox1 Location -10/Mines Parts ------- > --- POWER (1) -------- (None) > --- PROPULSION (2) --- Flight Unit > --- UTILITY (2) ------ Medium Storage Unit > --- WEAPON (2) ------- (None) > --- INVENTORY (8) ---- Ion Engine Ion Engine Ion Engine Light Treads Light Treads Light Assault Rifle Bore Cannon Mining Laser Peak State ------------ > --- POWER ------------ Light Ion Engine > --- PROPULSION ------- Wheel Compact Wheel > --- UTILITY ---------- Medium Storage Unit Medium Storage Unit > --- WEAPON ----------- EM Pulse Gun Light Assault Rifle > --- INVENTORY -------- Ion Engine Ion Engine Ion Engine Light Treads Light Treads Aluminum Leg Aluminum Leg Small Storage Unit Small Storage Unit Grenade Launcher [Rating: 8] Favorites ----------- Power Light Ion Engine Engine Light Ion Engine Propulsion Compact Wheel Leg Aluminum Leg Wheel Compact Wheel Flight Unit Flight Unit Utility Medium Storage Unit Storage Medium Storage Unit Weapon EM Pulse Gun Energy Gun EM Pulse Gun Ballistic Gun Light Assault Rifle Launcher Grenade Launcher Special Weapon Mining Laser Build | -11 -10 -10 ------- Run | Scr Mat Min Slots Evolved . | . . . Power . | . . . Propulsion . | . . . Utility . | . . . Weapon . | . . . Parts Attached 16 | 6 4 6 Power 1 | . 1 . Engine 1 | . 1 . Core . | . . . Reactor . | . . . Propulsion 6 | 2 . 4 Treads . | . . . Leg 2 | . . 2 Wheel 2 | 2 . . Hover . | . . . Flight 2 | . . 2 Utility 4 | 2 2 . Device . | . . . Storage 4 | 2 2 . Processor . | . . . Hackware . | . . . Protection . | . . . Artifact . | . . . Weapon 5 | 2 1 2 Energy Gun 2 | 2 . . Energy Cannon . | . . . Ballistic Gun 1 | . 1 . Ballistic Cannon . | . . . Launcher 1 | . . 1 Special Weapon 1 | . . 1 Impact Weapon . | . . . Slashing Weapon . | . . . Piercing Weapon . | . . . Special Melee Weapon . | . . . Unidentified Prototypes . | . . . Parts Lost 8 | . . 8 Power 1 | . . 1 Propulsion 5 | . . 5 Utility . | . . . Weapon 2 | . . 2 Highest Loss Streak 8 | . . 8 Average Slot Usage (%) 95 | . 95 95 Engine 11 | . 10 12 Leg 1 | . . 2 Wheel 25 | . 28 24 Storage 28 | . 28 28 Energy Gun 13 | . 15 12 Ballistic Gun 9 | . 12 8 Launcher 2 | . . 3 Special Weapon 1 | . . 1 Naked Turns . | . . . Heaviest Build 24 | 12 22 24 Greatest Support 26 | 26 26 26 Greatest Overweight (x) 1 | . . 1 Average Overweight (x) . | . . . Largest Inventory Capacity 12 | 8 12 12 Average Capacity 10 | 6 9 12 Most Carried 12 | 8 12 12 Average Carried 9 | 4 8 11 Final Capacity 12 | 8 12 8 Final Carried 12 | 8 12 8 Class Distribution -------------------- 100% | Mutant Dominant Class ---------------- Mutant | -10/Materials Mutant | -10/Mines Resources | -11 -10 -10 ----------- Run | Scr Mat Min Matter Collected 374 | 260 . 114 Remotely . | . . . Salvage Created 129 | 59 38 32 Parts 3 | 2 1 . Haulers Intercepted . | . . . Recyclers Shooed . | . . . Parts Field Recycled . | . . . Retrieved Matter . | . . . Parts Self-Destructed . | . . . Prevented . | . . . Kills | -11 -10 -10 ------- Run | Scr Mat Min Combat Hostiles Destroyed 7 | . 1 6 AOE 7 | . 1 6 Classes Destroyed 3 | 1 1 1 Recycler 1 | 1 . . Grunt 1 | . 1 . Assembled 6 | . . 6 Best Kill Streak 6 | 1 1 6 Combat Bots Only 6 | . 1 6 Max Kills in Single Turn 3 | 1 1 3 Gunslinging . | . . . Exploded 3 | . 1 3 Melee . | . . . Uniques/NPCs Destroyed . | . . . Combat | -11 -10 -10 -------- Run | Scr Mat Min Damage Taken 897 | . . 897 Core 252 | . . 252 Absorbed by Shields . | . . . Core Remaining (%) 100 | 100 . . Volleys Fired 12 | 4 1 7 Largest 2 | 2 2 2 Hottest 100 | 90 60 100 Shots Fired 18 | 8 2 8 Gun 13 | 8 2 3 Cannon . | . . . Launcher 4 | . . 4 Special 1 | . . 1 Kinetic 1 | . 1 . Thermal 5 | 4 . 1 Explosive 4 | . . 4 Electromagnetic 8 | 4 1 3 Robot Hit Streak 4 | 1 2 4 Robot Miss Streak 6 | 6 1 4 Penetration Max . | . . . Secondary Targets . | . . . Shots Hit Robots 6 | 1 1 4 Core Hits 14 | 2 1 11 Critical Hits . | . . . Critical Kills . | . . . Critical Parts Destroyed . | . . . Melee Attacks . | . . . Impact . | . . . Slashing . | . . . Piercing . | . . . Sneak Attacks . | . . . Combat Hostiles . | . . . Follow-up Attacks . | . . . Damage Inflicted 426 | 53 52 321 Guns 68 | 53 15 . Cannons . | . . . Explosions 358 | . 37 321 Melee . | . . . Ramming . | . . . Kinetic . | . . . Thermal 50 | 13 37 . Explosive 321 | . . 321 Electromagnetic 55 | 40 15 . Impact . | . . . Slashing . | . . . Piercing . | . . . Highest Corruption 3 | . . 3 Average Corruption 3 | . . 3 Corruption Purged . | . . . Effects 1 | . . 1 Matter Fused 1 | . . 1 Overload Shots . | . . . Overflow Damage 27 | . . 27 Projectiles . | . . . Explosions 27 | . . 27 Melee . | . . . Knockbacks . | . . . Impact . | . . . Kinetic . | . . . Secondary . | . . . Self-Inflicted Damage 81 | . . 81 Shots 4 | . . 4 Rammed . | . . . Targets Rammed . | . . . Kicked . | . . . Crushed . | . . . Highest Temperature 40 | 35 20 40 Average Temperature 19 | 18 15 21 Received Heat Transfer 66 | . . 66 Siege Activations . | . . . Robots Corrupted . | . . . Combat Hostiles . | . . . Parts Fried . | . . . Impact Corruptions . | . . . Robots Melted . | . . . Combat Hostiles . | . . . Parts Melted . | . . . Heat Transferred 87 | 37 50 . Parts Sabotaged . | . . . Parts Stolen . | . . . Parts Stripped . | . . . Power Chain Reactions 1 | . 1 . Missiles Intercepted . | . . . Alert | -11 -10 -10 ------- Run | Scr Mat Min Peak Influence 84 | 5 68 84 Average Influence 26 | 2 41 28 Maximum Alert Level . | . . . Low Security (%) 100 | 100 100 100 Level 1 . | . . . Level 2 . | . . . Level 3 . | . . . Level 4 . | . . . Level 5 . | . . . High Security . | . . . Max Security . | . . . Squads Dispatched . | . . . Investigation . | . . . Extermination . | . . . Reinforcement . | . . . Assault . | . . . Garrison . | . . . Intercept . | . . . Construction Impeded . | . . . Haulers Reinforced . | . . . Stealth | -11 -10 -10 --------- Run | Scr Mat Min Distress Signals . | . . . Communications Jammed . | . . . Distress Signals . | . . . Times Spotted 15 | . 1 14 Peak Tracking Total 12 | . 1 12 Tactical Retreats 1 | . . 1 Traps | -11 -10 -10 ------- Run | Scr Mat Min Traps Triggered . | . . . Indirectly . | . . . Trap Hack Attempts . | . . . Triggered . | . . . Disarmed . | . . . Reprogrammed . | . . . Reused . | . . . Traps Extracted . | . . . Installed . | . . . Triggered . | . . . Machines | -11 -10 -10 ---------- Run | Scr Mat Min Machines Disabled 3 | . 2 1 Max in Single Turn 2 | . 2 1 Machines Sabotaged . | . . . Garrisons Compromised . | . . . Overloaded Fab Kills . | . . . Fab Network Shutdowns . | . . . Hacking | -11 -10 -10 --------- Run | Scr Mat Min Machines Accessed 2 | . 2 . Terminals 2 | . 2 . Fabricators . | . . . Repair Stations . | . . . Recycling Units . | . . . Scanalyzers . | . . . Garrison Access . | . . . Total Hacks 5 | . 5 . Successful 3 | . 3 . Failed 2 | . 2 . Catastrophic . | . . . Database Lockouts . | . . . Manual 4 | . 4 . Terminals 5 | . 5 . Fabricators . | . . . Repair Stations . | . . . Recycling Units . | . . . Scanalyzers . | . . . Garrison Access . | . . . Terminal Hacks 3 | . 3 . Part Schematic 1 | . 1 . Branch Access Points 1 | . 1 . Locate Traps 1 | . 1 . Fabricator Hacks . | . . . Repair Station Hacks . | . . . Recycling Unit Hacks . | . . . Scanalyzer . | . . . Garrison Access Hacks . | . . . Unauthorized Hacks . | . . . Terminals . | . . . Fabricators . | . . . Repair Stations . | . . . Recycling Units . | . . . Scanalyzers . | . . . Garrison Access . | . . . Data Cores Recovered . | . . . Used . | . . . Hacking Detections 1 | . 1 . Full Trace Events . | . . . Feedback Events . | . . . Feedback Blocked . | . . . Robot Schematics Acquired . | . . . Robots Built . | . . . Matter . | . . . Time . | . . . Total Robot Build Rating . | . . . Part Schematics Acquired 1 | . 1 . Parts Built . | . . . Matter . | . . . Time . | . . . Total Part Build Rating . | . . . Parts Repaired . | . . . Time . | . . . Parts Recycled . | . . . Recycled Matter . | . . . Retrieved Matter . | . . . Retrieved Components . | . . . Parts Scanalyzed . | . . . Part Schematics Acquired . | . . . Parts Damaged . | . . . Bothacking | -11 -10 -10 ------------ Run | Scr Mat Min Used RIF Installer . | . . . Robots Hacked . | . . . Non-combat . | . . . Combat . | . . . Robot Hacks Applied . | . . . Relay Couplers Released . | . . . Robots Rewired . | . . . Allies Hacked . | . . . Hacks Repelled . | . . . Allies | -11 -10 -10 -------- Run | Scr Mat Min Total Allies 3 | . . 3 Largest Group 3 | . . 3 Highest-Rated Group 40 | . . 40 Highest-Rated Ally 16 | . . 16 Total Orders . | . . . Ally Attacks 15 | . . 15 Total Damage 167 | . . 167 Kills 2 | . . 2 Allies Corrupted . | . . . Allies Melted . | . . . Intel | -11 -10 -10 ------- Run | Scr Mat Min Robot Analysis Total . | . . . Derelict Logs Recovered . | . . . Drone Launches . | . . . Drone Recoveries . | . . . Exploration | -11 -10 -10 ------------- Run | Scr Mat Min Turns Passed 418 | 82 107 229 Spaces Moved 358 | 59 101 198 Core 1 | 1 . . Treads . | . . . Legs 20 | . . 20 Wheels 337 | 58 101 178 Hover . | . . . Flight . | . . . Fastest Speed 50 | 50 90 90 Average Speed 92 | 90 90 93 Slowest Speed 150 | 100 90 150 Overloaded Moves . | . . . Propulsion Burnouts . | . . . Robots Hopped . | . . . Cave-ins Triggered 1 | . . 1 Exploration Rate (%) 21 | 5 20 39 Regions Visited 2 Branch Regions 1 Pre-discovered Areas 1 | . . 1 Known Exits Taken 1 | . 1 . Unknown Exits Taken 1 | 1 . . Scrap Searched . | . . . Spaces Dug 1 | . . 1 Terrain Destroyed 31 | . . 31 Melee . | . . . Projectile 1 | . . 1 AOE 30 | . . 30 Actions | -11 -10 -10 --------- Run | Scr Mat Min Total 423 | 76 116 231 Wait 17 | . . 17 Move 356 | 58 100 198 Hop . | . . . Pick Up 16 | 8 7 1 Fast Attach 6 | 6 . . Attach 5 | . 1 4 Detach . | . . . Swap 5 | . 3 2 Drop 6 | . 4 2 Fire 12 | 4 1 7 Melee . | . . . Ram . | . . . Kick . | . . . Crush . | . . . Escape Stasis . | . . . Rewire . | . . . Trap . | . . . Miscellaneous . | . . . Route ------- -11/Scrapyard -10/Materials (discovered 2 exits: *Min x2) -10/Mines (discovered 1 exit: [*Mat]) History --------- Turn | Location | Event 14 | -11/Scrapyard | Discovered new exit (range 16) 83 | -11/Scrapyard | Entered Materials 129 | -10/Materials | Identified exit to Mines 190 | -10/Materials | Entered Mines 195 | -10/Mines | Assisted by bots powering up and referring to "LRC-V3" 235 | -10/Mines | Discovered new exit (range 6) 238 | -10/Mines | Learned location of Storage (-8) 310 | -10/Mines | Assembled infested the area 315 | -10/Mines | Assisted by a Guerilla fighting off Assembled 316 | -10/Mines | Build established: Mutant 390 | -10/Mines | Crushed by falling debris 390 | -10/Mines | Core integrity fell below 50% 419 | -10/Mines | Core integrity fell below 20% 419 | -10/Mines | Destroyed by D-53 Grenadier with Mini Grenade Launcher Last Messages --------------- 00384_ EM Pulse Gun destroyed. 00384_ Wheel destroyed. 00388_ Dropped Mining Laser. 00389_ The unstable cave ceiling collapses. 00389_ Acquired Bore Cannon. 00390_ The unstable cave ceiling collapses. 00390_ Crushed by falling debris. 00390_ Com. Wheel destroyed. 00390_ System corrupted by crushing effect (+3). 00390_ Lgt. Ion Engine destroyed. 00391_ The unstable cave ceiling collapses. 00401_ System corrupted: Matter fused (-10). 00403_ The unstable cave ceiling collapses. 00403_ Grenade Launcher destroyed. 00404_ The unstable cave ceiling collapses. 00413_ Aluminum Leg destroyed. 00415_ Acquired 15 matter. 00416_ Aluminum Leg destroyed. 00419_ Dropped Med. Storage Unit. 00419_ Flight Unit destroyed. Map ----- +----------------------------------------------------+ | ???###?#[#### # ##??????????????????????? | | ???????# #??# # #??????????????????????? | | ???????# #### # # ##???????????????????????? | | ???????# [ #???????????????????????? | | ???????###### ##??????????????????????? | | ????????????## #??????????????????????? | | ?????????????# # # ##??????????????????????? | | ?????????????## ####????????????????????? | | ??????????????# % #????????????????????? | | ??????????????# # #????????????????????? | | ??????????????## # #????????????????????? | | ?????????????### ##?#????????????????????? | | ?????????????# #???????????????????????? | | ?????????????## #???????????????????????? | | ????????????## # ###???????????????????????? | | ????????????# ####?????????????????????????? | | ????????????## ##????????????????????????????? | | ?????????????# ####??????????????????????????? | | ?????????????# dd ###????????????????????????? | | ?????????????## ###??????????????????????? | | ??????????????##< #??????????????????????? | | ??????????????# ##?????????????????????? | | ??????????????# =%! ##????????????????????? | | ??????????????## = ##???????????????????? | | ???????????????## # #??????????????? | | ????????????????# ! @ #??????????????? | | ????????????????# % #??????????????? | | ????????????????# ##??????????????? | | ????????????? #???????????????? | | ?????????? # ##???????????????? | | ???????????####### #########????????????????? | | ?????????????????# ????????????????????????? | | ????????????????# ????????????????????????? | | ???????????????# ????????????????????????? | | ??????????????? ????????????????????????? | | ?????????????? %= ????????????????????????? | | ????????????? ! ????????????????????????? | | ??????????????? ### ????????????????????????? | | ??????????????????## ????????????????????????? | | ????????????????????# ??????????????????????????? | | ????????????????????????????????????????????????? | | ????????????????????????????????????????????????? | | ????????????????????????????????????????????????? | | ????????????????????????????????????????????????? | | | | | | | | | | | | | +----------------------------------------------------+ Best States ------------- Heat Dissipation 25 Energy Generation 10 Energy Capacity 125 Matter Stores 300 Matter Capacity 300 Sight Range 16 Terrain Scan Density 10 Evasion (%) 42 Item Schematics ----------------- Hcp. Storage Unit | -10/Materials | Hacked Robot Schematics ------------------ None Fabricated ------------ Nothing Alien Tech Used ----------------- None Achievements -------------- None Challenges ------------ None Game ------ Seed NullFluxProtomatter Manual? 0 Play Time 00:06:00 Cumulative 110.5 hours Start 2020.08.22 @ 03:23:19 End 2020.08.22 @ 03:29:21 Sessions 1 Manual Loads 0 Difficulty Rogue Special Mode None Game No. 141 Rogue 141 Adventurer 0 Explorer 0 Win Type - Total 1 Types 1/0/0/0/0/0/0 Lore% 49 Gallery% 61 Achievement% 45 Wizard Run 0 Options --------- ASCII 0 Keyboard 0 Movement Numpad Keybinds 0 Fullscreen 2 Font 24/Smallcaps Map View 76x50 Tactical HUD 1 Map Filters NONE Filters NONE Steam 1 RUN: 3dbed4dd-e62a-4728-a2bd-3f6627510560